[Event "KAZ Cup 2019"]
[Site "Almaty"]
[Date "2019.12.16"]
[Round "6.4"]
[White "Urazayev, Arystanbek"]
[Black "Igambergenov, Alibek"]
[Result "0-1"]
[ECO "B06"]
[WhiteElo "2433"]
[BlackElo "2410"]
[Annotator "ChessBase"]
[PlyCount "82"]
[EventDate "2019.12.12"]
[EventType "tourn"]
[EventCountry "KAZ"]
[SourceTitle "playchess.com"]
[Source "ChessBase"]
[SourceQuality "1"]
[TimeControl "40/5400+30:1800+30"]

1. e4 {[%emt 0:00:19]} g6 {[%emt 0:00:12]} 2. d4 {[%emt 0:00:37]} Bg7 {[%emt 0:00:06]} 3. Nc3 {[%emt 0:00:04]} d6 {[%emt 0:00:05]} 4. Be3 {[%emt 0:00:15]} a6 {[%emt 0:00:40]} 5. f4 {[%emt 0:01:43]} b5 {[%emt 0:00:20]} 6. Bd3 {[%emt 0:00:08]} Bb7 {[%emt 0:02:19]} 7. Nf3 {[%emt 0:00:18]} b4 {[%emt 0:03:49]} 8. Ne2 {[%emt 0:03:21]} Nf6 {[%emt 0:00:07]} 9. Ng3 {[%emt 0:02:11]} Nbd7 {[%emt 0:07:22]} 10. Qe2 {[%emt 0:03:44]} O-O {[%emt 0:09:59]} 11. O-O {[%emt 0:02:22]} e6 {[%emt 0:14:59]} 12. c3 {[%emt 0:03:52]} bxc3 {[%emt 0:05:54]} 13. bxc3 {[%emt 0:00:07]} c5 {[%emt 0:00:04]} 14. Rab1 {[%emt 0:11:11]} Bc6 {[%emt 0:01:20]} 15. Nd2 {[%emt 0:03:02]} Qc7 {[%emt 0:10:13]} 16. h3 {[%emt 0:06:58]} Rfb8 {[%emt 0:03:09]} 17. Kh2 {[%emt 0:15:14]} a5 {[%emt 0:04:42]} 18. Qf2 {[%emt 0:03:11]} a4 {[%emt 0:10:42]} 19. dxc5 {[%emt 0:11:14]} Nxc5 {[%emt 0:00:15]} 20. Bxc5 {[%emt 0:01:06]} dxc5 {[%emt 0:00:04]} 21. Qxc5 {[%emt 0:03:45]} Nd7 {[%emt 0:00:20]} 22. Qe3 {[%emt 0:03:00]} Bxc3 {[%emt 0:01:26]} 23. Rbc1 {[%emt 0:03:54]} Bb2 {[%emt 0:02:34]} 24. Rc2 {[%emt 0:00:56]} a3 {[%emt 0:00:57]} 25. e5 {[%emt 0:01:31]} Qb7 {[%emt 0:04:53]} 26. Be4 {[%emt 0:00:56]} Bd5 {[%emt 0:04:26]} 27. Nc4 {[%emt 0:03:51]} Qa7 {[%emt 0:04:44]} 28. Qf3 {[%emt 0:07:10]} Qa4 {[%emt 0:01:14]} 29. Rff2 {[%emt 0:04:48]} Bxc4 {[%emt 0:03:33]} 30. Bxa8 {[%emt 0:00:13]} Bxa2 {[%emt 0:00:04]} 31. Bc6 {[%emt 0:01:08]} Qa7 {[%emt 0:00:04]} 32. Ne4 {[%emt 0:02:30]} Nf8 {[%emt 0:03:44]} 33. Qd3 {[%emt 0:00:52]} Bb1 {[%emt 0:00:35]} 34. Nf6+ {[%emt 0:00:27]} Kg7 {[%emt 0:00:50]} 35. Qd6 {[%emt 0:00:55]} Bxc2 {[%emt 0:00:22]} 36. Rxc2 {[%emt 0:00:04]} a2 {[%emt 0:00:46]} 37. Rxb2 a1=Q {[%emt 0:00:38]} 38. Rxb8 {[%emt 0:00:39]} Q1g1+ {[%emt 0:00:16]} 39. Kg3 {[%emt 0:00:05]} Qae3+ {[%emt 0:00:57]} 40. Bf3 {[%emt 0:01:30]} Qgf2+ {[%emt 0:00:22]} 41. Kg4 {[%emt 0:30:22]} h5+ {[%emt 0:30:20]} 0-1

[Event "KAZ Cup 2019"]
[Site "Almaty"]
[Date "2019.12.17"]
[Round "7.5"]
[White "Rakhimzhan, Alen"]
[Black "Babujian, Levon"]
[Result "0-1"]
[ECO "E35"]
[WhiteElo "2354"]
[BlackElo "2466"]
[Annotator "ChessBase"]
[PlyCount "124"]
[EventDate "2019.12.12"]
[EventType "tourn"]
[EventCountry "KAZ"]
[SourceTitle "playchess.com"]
[Source "ChessBase"]
[SourceQuality "1"]
[TimeControl "40/5400+30:1800+30"]

1. d4 {[%emt 0:10:31]} Nf6 {[%emt 0:00:00]} 2. c4 {[%emt 0:00:08]} e6 {[%emt 0:00:00]} 3. Nc3 {[%emt 0:00:09]} Bb4 {[%emt 0:00:12]} 4. Qc2 {[%emt 0:00:12]} d5 {[%emt 0:00:23]} 5. cxd5 {[%emt 0:00:13]} exd5 {[%emt 0:00:05]} 6. Bg5 {[%emt 0:00:07]} c5 {[%emt 0:00:47]} 7. Nf3 {[%emt 0:01:03]} h6 {[%emt 0:03:28]} 8. Bd2 {[%emt 0:15:11]} O-O {[%emt 0:02:08]} 9. a3 {[%emt 0:07:23]} cxd4 {[%emt 0:01:10]} 10. axb4 {[%emt 0:03:32]} dxc3 {[%emt 0:00:03]} 11. Bxc3 {[%emt 0:00:37]} Ne4 {[%emt 0:01:26]} 12. e3 {[%emt 0:01:39]} Bg4 {[%emt 0:00:58]} 13. Be2 {[%emt 0:08:26]} Nc6 {[%emt 0:09:32]} 14. b5 {[%emt 0:05:52]} Nxc3 {[%emt 0:02:02]} 15. bxc3 {[%emt 0:07:40]} Bxf3 {[%emt 0:00:23]} 16. gxf3 {[%emt 0:00:28]} Ne7 {[%emt 0:01:49]} 17. O-O {[%emt 0:06:54]} Qd6 {[%emt 0:01:32]} 18. Ra4 {[%emt 0:00:49]} Rfc8 {[%emt 0:00:52]} 19. Rfa1 {[%emt 0:00:25]} Qc5 {[%emt 0:01:45]} 20. Qd3 {[%emt 0:02:08]} Qb6 {[%emt 0:04:19]} 21. Kh1 {[%emt 0:02:12]} Rc5 {[%emt 0:05:56]} 22. Qd4 {[%emt 0:02:03]} Nf5 {[%emt 0:03:44]} 23. Qf4 {[%emt 0:00:38]} Qf6 {[%emt 0:03:48]} 24. Rg1 {[%emt 0:15:46]} Rxc3 {[%emt 0:28:14]} 25. e4 {[%emt 0:01:15]} Re8 {[%emt 0:00:47]} 26. Bd1 {[%emt 0:03:42]} dxe4 {[%emt 0:01:34]} 27. fxe4 {[%emt 0:00:03]} Re5 {[%emt 0:01:21]} 28. exf5 {[%emt 0:03:01]} Rxf5 {[%emt 0:00:03]} 29. Qb8+ {[%emt 0:01:13]} Kh7 {[%emt 0:00:04]} 30. Rag4 {[%emt 0:00:24]} g6 {[%emt 0:00:03]} 31. Qxb7 {[%emt 0:00:34]} Rxf2 {[%emt 0:03:36]} 32. R4g2 {[%emt 0:00:57]} Rxg2 {[%emt 0:10:49]} 33. Qxg2 {[%emt 0:00:02]} Qe5 {[%emt 0:00:45]} 34. Rf1 {[%emt 0:01:07]} Kg7 {[%emt 0:00:04]} 35. Qf2 {[%emt 0:00:24]} Qd5+ {[%emt 0:00:24]} 36. Kg1 {[%emt 0:00:21]} Qg5+ {[%emt 0:00:25]} 37. Kh1 {[%emt 0:00:13]} Qd5+ {[%emt 0:00:05]} 38. Bf3 {[%emt 0:00:15]} Qxb5 {[%emt 0:01:04]} 39. Qd4+ {[%emt 0:00:43]} Kh7 {[%emt 0:01:01]} 40. Bg2 {[%emt 0:00:48]} Rc7 {[%emt 0:00:22]} 41. h3 {[%emt 0:15:47]} a5 {[%emt 0:03:26]} 42. Qf4 {[%emt 0:07:46]} Qc5 {[%emt 0:01:52]} 43. Rd1 {[%emt 0:01:26]} Kg7 {[%emt 0:01:28]} 44. Kh2 {[%emt 0:00:46]} Re7 {[%emt 0:01:56]} 45. Kh1 {[%emt 0:01:40]} h5 {[%emt 0:01:30]} 46. Qa4 {[%emt 0:02:17]} Qc3 {[%emt 0:00:37]} 47. Qh4 {[%emt 0:00:43]} Rc7 {[%emt 0:03:03]} 48. Qe4 {[%emt 0:00:52]} Rc4 {[%emt 0:00:53]} 49. Qd5 {[%emt 0:02:15]} a4 {[%emt 0:03:37]} 50. Rd3 {[%emt 0:01:13]} Qa1+ {[%emt 0:03:08]} 51. Kh2 {[%emt 0:00:14]} Rf4 {[%emt 0:01:02]} 52. Qd6 {[%emt 0:01:08]} Rf2 {[%emt 0:00:28]} 53. Kg3 {[%emt 0:00:40]} Rf6 {[%emt 0:05:44]} 54. Qc5 {[%emt 0:00:17]} Qb1 {[%emt 0:01:18]} 55. Rd8 {[%emt 0:00:36]} Kh7 {[%emt 0:01:29]} 56. Kh2 {[%emt 0:00:20]} Qb2 {[%emt 0:01:01]} 57. Ra8 {[%emt 0:00:30]} Rf2 {[%emt 0:01:14]} 58. Qd5 {[%emt 0:00:40]} a3 {[%emt 0:00:09]} 59. Kg3 {[%emt 0:00:27]} Rf5 {[%emt 0:00:49]} 60. Qe4 {[%emt 0:00:42]} a2 {[%emt 0:00:14]} 61. Qe8 {[%emt 0:00:23]} Rg5+ {[%emt 0:02:04]} 62. Kh4 {[%emt 0:00:22]} Qf2+ {[%emt 0:00:09]} 0-1

[Event "KAZ Cup 2019"]
[Site "Almaty"]
[Date "2019.12.18"]
[Round "8.4"]
[White "Makhnev, Denis"]
[Black "Stupak, Kirill"]
[Result "1-0"]
[ECO "A40"]
[WhiteElo "2476"]
[BlackElo "2529"]
[Annotator "RC"]
[PlyCount "73"]
[EventDate "2019.12.12"]
[EventType "tourn"]
[EventCountry "KAZ"]
[SourceTitle "playchess.com"]
[Source "ChessBase"]
[SourceQuality "1"]
[TimeControl "40/5400+30:1800+30"]

1. d4 {[%emt 0:00:00]} Nf6 {[%emt 0:01:41]} 2. c4 {[%emt 0:00:44]} e6 {[%emt 0:00:05]} 3. g3 {[%emt 0:00:08]} Bb4+ {[%emt 0:00:05]} 4. Bd2 {[%emt 0:00:07]} Qe7 {[%emt 0:00:19]} 5. Bg2 {[%emt 0:00:40]} O-O {[%emt 0:00:09]} 6. Nf3 {[%emt 0:00:22]} Bxd2+ {[%emt 0:00:15]} 7. Qxd2 {[%emt 0:00:12]} Ne4 {[%emt 0:00:03]} 8. Qc2 {[%emt 0:00:14]} Qb4+ {[%emt 0:00:01]} 9. Nbd2 {[%emt 0:00:21]} Nxd2 {[%emt 0:01:28]} 10. Nxd2 {[%emt 0:00:15]} Qe7 11. O-O {[%emt 0:01:23]} d6 {[%emt 0:03:21]} 12. b4 {[%emt 0:08:20]} e5 {[%emt 0:07:32]} 13. e3 {[%emt 0:05:27]} c6 {[%emt 0:11:03]} 14. c5 exd4 {[%emt 0:13:47]} 15. exd4 {[%emt 0:00:38]} d5 16. a4 {[%emt 0:02:26]} Qf6 {[%emt 0:06:55]} 17. Qc3 Bf5 {[%emt 0:08:45]} 18. b5 {[%emt 0:05:40]} Nd7 {[%emt 0:05:39]} 19. a5 {[%emt 0:00:09]} Rac8 {[%emt 0:07:31]} 20. b6 {[%emt 0:03:21]} a6 {[%emt 0:00:16]} 21. h3 {[%emt 0:00:40]} h5 {[%emt 0:02:50]} 22. Rae1 {[%emt 0:14:03]} Rfe8 {[%emt 0:00:21]} 23. Re3 {[%emt 0:00:09]} Rxe3 {[%emt 0:01:47]} 24. Qxe3 {[%emt 0:03:31]} Qe6 {[%emt 0:03:37]} 25. Qxe6 {[%emt 0:02:28]} Bxe6 {[%emt 0:00:30]} 26. Re1 {[%emt 0:00:45]} Nf8 {[%emt 0:02:07]} 27. Nf1 {[%emt 0:01:09]} Re8 {[%emt 0:04:19]} 28. f4 {[%emt 0:01:51]} g6 {[%emt 0:02:22]} 29. Kf2 {[%emt 0:01:11]} Bd7 {[%emt 0:01:06]} 30. Rxe8 {[%emt 0:08:42]} Bxe8 {[%emt 0:00:10]} 31. f5 Bd7 {[%emt 0:16:32]} 32. Ne3 {[%emt 0:00:11]} Bxf5 {[%emt 0:00:42]} 33. Nxf5 {[%emt 0:00:37]} gxf5 {[%emt 0:00:01]} 34. Bf3 {[%emt 0:02:10]} h4 {[%emt 0:01:06]} 35. gxh4 {[%emt 0:00:35]} Ne6 {[%emt 0:00:23]} 36. Be2 {[%emt 0:00:37]} Nd8 {[%emt 0:00:28]} 37. Bd3 {[%emt 0:00:06]} 1-0

[Event "KAZ Cup 2019"]
[Site "Almaty"]
[Date "2019.12.19"]
[Round "9.3"]
[White "Utegaliyev, Azamat"]
[Black "Makhnev, Denis"]
[Result "1-0"]
[ECO "A46"]
[WhiteElo "2502"]
[BlackElo "2476"]
[Annotator "ChessBase"]
[PlyCount "109"]
[EventDate "2019.12.12"]
[EventType "tourn"]
[EventCountry "KAZ"]
[SourceTitle "playchess.com"]
[Source "ChessBase"]
[SourceQuality "1"]
[TimeControl "40/5400+30:1800+30"]

1. d4 {[%emt 0:15:48]} Nf6 {[%emt 0:00:00]} 2. Nf3 {[%emt 0:00:13]} e6 {[%emt 0:00:00]} 3. Bf4 {[%emt 0:00:25]} d5 {[%emt 0:00:10]} 4. e3 {[%emt 0:00:21]} c5 {[%emt 0:00:23]} 5. c3 {[%emt 0:00:31]} Bd6 {[%emt 0:00:09]} 6. Bg3 {[%emt 0:00:18]} Qc7 {[%emt 0:00:10]} 7. Nbd2 {[%emt 0:00:13]} Nbd7 {[%emt 0:00:09]} 8. Be2 {[%emt 0:10:50]} O-O {[%emt 0:00:14]} 9. O-O {[%emt 0:00:05]} Bxg3 {[%emt 0:00:24]} 10. hxg3 e5 {[%emt 0:00:04]} 11. dxe5 {[%emt 0:01:57]} Nxe5 {[%emt 0:00:08]} 12. Nxe5 {[%emt 0:00:07]} Qxe5 {[%emt 0:00:06]} 13. Nf3 {[%emt 0:00:24]} Qe7 {[%emt 0:00:40]} 14. Qc2 {[%emt 0:01:01]} b6 {[%emt 0:13:55]} 15. Rad1 {[%emt 0:02:01]} Bd7 {[%emt 0:03:09]} 16. Rd2 {[%emt 0:05:17]} Bc6 {[%emt 0:02:52]} 17. Qf5 {[%emt 0:02:35]} Ne4 {[%emt 0:02:27]} 18. Rdd1 {[%emt 0:00:24]} Rae8 {[%emt 0:04:19]} 19. Bd3 {[%emt 0:01:23]} g6 {[%emt 0:00:51]} 20. Qf4 {[%emt 0:00:32]} Ba4 {[%emt 0:05:59]} 21. Rc1 {[%emt 0:04:03]} Kg7 {[%emt 0:00:50]} 22. Qh4 {[%emt 0:03:01]} g5 {[%emt 0:00:26]} 23. Qh5 {[%emt 0:02:22]} h6 {[%emt 0:00:24]} 24. Rfe1 {[%emt 0:00:19]} Nf6 {[%emt 0:10:36]} 25. Qh1 {[%emt 0:00:45]} Bd7 {[%emt 0:01:32]} 26. Rcd1 {[%emt 0:01:56]} Rd8 {[%emt 0:02:08]} 27. Kh2 {[%emt 0:02:51]} Ng4+ {[%emt 0:00:38]} 28. Kg1 {[%emt 0:00:05]} f5 {[%emt 0:05:14]} 29. Bc2 {[%emt 0:03:25]} Be6 {[%emt 0:01:30]} 30. Rd2 {[%emt 0:03:00]} a5 {[%emt 0:05:57]} 31. a3 {[%emt 0:03:44]} Rd6 {[%emt 0:01:15]} 32. Bd3 {[%emt 0:02:51]} Rfd8 {[%emt 0:01:07]} 33. Rdd1 {[%emt 0:01:45]} Bd7 {[%emt 0:00:52]} 34. Bc2 {[%emt 0:03:21]} Qf6 {[%emt 0:00:34]} 35. Rd2 {[%emt 0:01:10]} Be8 {[%emt 0:05:25]} 36. Red1 {[%emt 0:02:27]} Bg6 37. Bd3 {[%emt 0:07:23]} Qe6 {[%emt 0:00:42]} 38. Re1 {[%emt 0:00:51]} Nf6 {[%emt 0:00:27]} 39. Rdd1 {[%emt 0:01:06]} Ne4 {[%emt 0:01:32]} 40. Re2 {[%emt 0:02:54]} Qf6 {[%emt 0:03:47]} 41. Qh2 {[%emt 0:34:49]} a4 {[%emt 0:42:27]} 42. Qh1 {[%emt 0:05:11]} h5 {[%emt 0:02:07]} 43. Bc2 {[%emt 0:06:26]} b5 {[%emt 0:01:04]} 44. Bd3 {[%emt 0:01:07]} g4 {[%emt 0:04:45]} 45. Nh4 {[%emt 0:00:00]} d4 {[%emt 0:00:00]} 46. exd4 {[%emt 0:00:00]} cxd4 {[%emt 0:00:00]} 47. Bxe4 {[%emt 0:00:00]} fxe4 {[%emt 0:00:00]} 48. cxd4 {[%emt 0:00:00]} Rxd4 {[%emt 0:00:00]} 49. Rxd4 {[%emt 0:00:00]} Rxd4 {[%emt 0:00:00]} 50. Kh2 Bh7 51. Qc1 {[%emt 0:00:00]} Rd5 {[%emt 0:00:00]} 52. Rc2 {[%emt 0:00:00]} Bg8 {[%emt 0:00:00]} 53. Rc6 {[%emt 0:00:00]} Be6 {[%emt 0:00:00]} 54. Rb6 {[%emt 0:00:00]} Qe5 {[%emt 0:00:07]} 55. Qc6 {[%emt 0:00:00]} 1-0

[Event "KAZ Cup 2019"]
[Site "Almaty"]
[Date "2019.12.19"]
[Round "9.4"]
[White "Rakhimzhan, Alen"]
[Black "Urazayev, Arystanbek"]
[Result "0-1"]
[ECO "E26"]
[WhiteElo "2354"]
[BlackElo "2433"]
[Annotator "ChessBase"]
[PlyCount "108"]
[EventDate "2019.12.12"]
[EventType "tourn"]
[EventCountry "KAZ"]
[SourceTitle "playchess.com"]
[Source "ChessBase"]
[SourceQuality "1"]
[TimeControl "40/5400+30:1800+30"]

1. d4 {[%emt 0:08:32]} Nf6 {[%emt 0:00:00]} 2. c4 {[%emt 0:00:09]} e6 {[%emt 0:00:00]} 3. Nc3 {[%emt 0:00:11]} Bb4 {[%emt 0:00:00]} 4. e3 {[%emt 0:01:01]} c5 {[%emt 0:00:11]} 5. a3 {[%emt 0:00:32]} Bxc3+ {[%emt 0:03:56]} 6. bxc3 {[%emt 0:00:10]} O-O {[%emt 0:02:07]} 7. Bd3 {[%emt 0:00:08]} d5 {[%emt 0:02:06]} 8. cxd5 {[%emt 0:00:40]} exd5 {[%emt 0:00:18]} 9. Ne2 {[%emt 0:00:16]} b6 {[%emt 0:02:35]} 10. O-O {[%emt 0:02:30]} Ba6 {[%emt 0:01:34]} 11. Ng3 {[%emt 0:02:18]} Bxd3 {[%emt 0:00:52]} 12. Qxd3 {[%emt 0:00:18]} Nc6 {[%emt 0:00:13]} 13. Bb2 {[%emt 0:03:15]} Re8 {[%emt 0:10:15]} 14. f3 {[%emt 0:01:21]} h5 15. Rae1 {[%emt 0:11:01]} h4 {[%emt 0:07:46]} 16. Nf5 {[%emt 0:01:32]} Nh5 {[%emt 0:18:13]} 17. e4 {[%emt 0:07:05]} g6 {[%emt 0:11:05]} 18. Nh6+ {[%emt 0:07:36]} Kg7 {[%emt 0:00:07]} 19. Ng4 cxd4 {[%emt 0:16:18]} 20. cxd4 {[%emt 0:05:14]} Qd6 {[%emt 0:03:32]} 21. Qd2 {[%emt 0:06:21]} Kg8 {[%emt 0:06:30]} 22. Qf2 {[%emt 0:24:05]} h3 {[%emt 0:01:26]} 23. g3 {[%emt 0:01:10]} Rac8 {[%emt 0:03:13]} 24. Ne3 {[%emt 0:06:52]} Ne7 {[%emt 0:01:13]} 25. f4 {[%emt 0:00:47]} dxe4 {[%emt 0:03:07]} 26. g4 {[%emt 0:01:36]} Nf6 {[%emt 0:00:56]} 27. f5 {[%emt 0:01:47]} g5 {[%emt 0:00:34]} 28. Qd2 {[%emt 0:01:40]} Kh7 {[%emt 0:01:07]} 29. d5 {[%emt 0:01:12]} Neg8 {[%emt 0:02:28]} 30. Qd4 {[%emt 0:01:46]} Qc5 {[%emt 0:00:29]} 31. Qd2 {[%emt 0:02:09]} Qd6 {[%emt 0:01:31]} 32. Rd1 {[%emt 0:01:07]} Re7 {[%emt 0:00:38]} 33. Kh1 {[%emt 0:01:31]} Rec7 {[%emt 0:01:16]} 34. Rg1 {[%emt 0:00:16]} Kg7 {[%emt 0:00:31]} 35. Rg3 {[%emt 0:00:37]} Kf8 {[%emt 0:00:15]} 36. a4 {[%emt 0:00:15]} Ke8 {[%emt 0:00:44]} 37. Rxh3 {[%emt 0:00:05]} Kd7 {[%emt 0:00:33]} 38. Rg3 {[%emt 0:00:26]} Ke8 {[%emt 0:00:45]} 39. Rgg1 {[%emt 0:00:27]} Kd7 {[%emt 0:00:22]} 40. Rg2 {[%emt 0:00:50]} Ke8 {[%emt 0:00:27]} 41. Qe2 {[%emt 0:30:25]} Nd7 {[%emt 0:13:34]} 42. f6 {[%emt 0:00:00]} Ngxf6 {[%emt 0:01:27]} 43. Rf2 Rc3 {[%emt 0:02:18]} 44. Rdf1 {[%emt 0:00:00]} Kd8 {[%emt 0:01:26]} 45. Rf5 {[%emt 0:00:00]} Rxe3 {[%emt 0:00:50]} 46. Qd2 {[%emt 0:03:10]} Rf3 {[%emt 0:06:20]} 47. Qxg5 {[%emt 0:00:03]} Rxf1+ {[%emt 0:05:09]} 48. Rxf1 {[%emt 0:00:02]} Ke7 {[%emt 0:00:46]} 49. Qf5 {[%emt 0:01:26]} Rc2 {[%emt 0:00:48]} 50. Bxf6+ {[%emt 0:00:24]} Nxf6 {[%emt 0:00:21]} 51. Rf4 {[%emt 0:00:10]} e3 {[%emt 0:01:08]} 52. Re4+ {[%emt 0:00:36]} Kf8 {[%emt 0:00:18]} 53. Re5 {[%emt 0:00:30]} e2 {[%emt 0:00:52]} 54. Qxc2 {[%emt 0:00:47]} Qxe5 {[%emt 0:00:04]} 0-1